bitfinex/quotes_BTCUSD_20240810
["timestamp","ask_amount","ask_price","bid_price","bid_amount"]
[1723264556796,0.232606,60432.0,60431.0,0.16681492]
[1723264557225,0.563556,60432.0,60431.0,0.16681492]
[1723264561331,0.232606,60432.0,60431.0,0.16681492]
[1723264561732,0.067131,60432.0,60431.0,0.16681492]
[1723264561972,0.232606,60432.0,60431.0,0.16681492]
[1723264563644,0.166306,60432.0,60431.0,0.16681492]
[1723264563792,0.280006,60432.0,60431.0,0.16681492]
[1723264565868,0.280006,60432.0,60431.0,0.003]
[1723264565869,1.024306,60432.0,60431.0,0.003]
[1723264566088,0.693356,60432.0,60431.0,0.003]
[1723264566512,0.362406,60432.0,60431.0,0.003]
[1723264566754,0.114531,60432.0,60431.0,0.33229192]
[1723264567200,0.114531,60432.0,60431.0,0.16681492]
[1723264568039,0.196931,60432.0,60431.0,0.16681492]
[1723264568934,0.196931,60432.0,60431.0,0.16531492]
[1723264569151,0.362406,60432.0,60431.0,0.16531492]
[1723264569410,0.114531,60432.0,60431.0,0.16531492]
[1723264571427,0.14418805,60432.0,60431.0,0.27966543]
[1723264573111,0.14422238,60432.0,60431.0,0.27951788]
[1723264573587,0.30969738,60432.0,60431.0,0.27951788]
[1723264574026,0.14422238,60432.0,60431.0,0.27951788]
[1723264574302,0.14422238,60432.0,60431.0,0.27928383]
[1723264574945,0.114531,60432.0,60431.0,0.27928383]
[1723264575396,0.14422197,60432.0,60431.0,0.27928383]
[1723264575627,0.114531,60432.0,60431.0,0.27928383]
[1723264575854,0.14422228,60432.0,60431.0,0.27928383]
[1723264576090,0.14422228,60432.0,60431.0,0.27956915]
[1723264576323,0.114531,60432.0,60431.0,0.58544615]
[1723264576555,0.114531,60432.0,60431.0,0.41996915]
[1723264576765,0.114531,60432.0,60431.0,0.27956915]
[1723264577380,0.000831,60432.0,60431.0,1.26490261]
[1723264577586,0.000831,60432.0,60431.0,1.32920261]
[1723264577908,0.000831,60432.0,60431.0,1.42920261]
[1723264578026,0.000831,60432.0,60431.0,1.34735615]
[1723264578872,0.000831,60432.0,60431.0,1.67831115]
[1723264579670,0.000831,60432.0,60431.0,1.34735615]
[1723264580289,0.000831,60432.0,60431.0,1.34827025]
[1723264582953,0.000831,60432.0,60431.0,1.23401602]
[1723264583162,0.000831,60432.0,60431.0,1.34805356]
[1723264583580,0.000831,60432.0,60431.0,1.23401602]
[1723264583792,0.000831,60432.0,60431.0,1.34805356]
[1723264588088,0.000831,60432.0,60431.0,1.67900856]
[1723264588626,0.000831,60432.0,60431.0,1.75313067]
[1723264588832,0.000831,60432.0,60431.0,1.7476972]
[1723264589040,0.000831,60432.0,60431.0,2.33003567]
[1723264589242,0.000831,60443.0,60442.0,1.158132]
[1723264589473,0.000831,60443.0,60442.0,3.17875875]
[1723264589737,0.000831,60443.0,60442.0,3.96006773]
[1723264589953,0.000831,60443.0,60442.0,3.63965375]
[1723264590184,0.000831,60443.0,60442.0,3.81330378]
[1723264590396,0.000831,60443.0,60442.0,3.2987383]
[1723264590610,0.000831,60443.0,60442.0,2.43185265]
[1723264590814,0.000831,60443.0,60442.0,2.44195929]
[1723264591081,0.001831,60443.0,60442.0,2.44995929]
[1723264591292,0.001831,60443.0,60442.0,2.57373237]
[1723264591509,0.001831,60443.0,60442.0,3.27373237]
[1723264591723,0.001831,60443.0,60442.0,3.27573237]
[1723264591955,0.001831,60443.0,60442.0,3.2737275]
[1723264592181,0.001831,60443.0,60442.0,3.0952911]
[1723264592457,0.002831,60443.0,60442.0,3.0952911]
[1723264592653,0.001831,60443.0,60442.0,3.48885525]
[1723264592854,0.002831,60443.0,60442.0,3.62456368]
[1723264593056,0.002831,60443.0,60442.0,2.92456368]
[1723264593295,0.001831,60443.0,60442.0,2.81911799]
[1723264593511,0.001831,60443.0,60442.0,2.81711799]
[1723264593725,0.002831,60443.0,60442.0,2.83111799]
[1723264594130,0.002831,60443.0,60442.0,2.73255288]
[1723264594331,0.002831,60443.0,60442.0,2.80672778]
[1723264594630,0.002831,60443.0,60442.0,3.54872778]
[1723264595192,0.002831,60443.0,60442.0,3.54870779]
[1723264595576,0.002831,60443.0,60442.0,3.54670779]
[1723264595784,0.002831,60443.0,60442.0,3.47455288]
[1723264596194,0.002831,60443.0,60442.0,4.25868554]
[1723264596398,0.002831,60443.0,60442.0,4.24868554]
[1723264596584,0.002831,60443.0,60442.0,4.24668554]
[1723264596788,0.002831,60443.0,60442.0,4.25868554]
[1723264596984,0.002831,60443.0,60442.0,4.25668554]
[1723264597194,0.002831,60443.0,60442.0,4.258659]
[1723264597449,0.002831,60443.0,60442.0,4.18452634]
[1723264597991,0.002831,60443.0,60442.0,4.20452634]
[1723264598215,0.002831,60443.0,60442.0,4.18252634]
[1723264598440,0.002831,60443.0,60442.0,4.20252634]
[1723264598870,0.002831,60443.0,60442.0,4.20452634]
[1723264599087,0.002831,60443.0,60442.0,4.17252634]
[1723264599307,0.002831,60443.0,60442.0,4.19252634]
[1723264599528,0.002831,60443.0,60442.0,4.19452634]
[1723264600577,0.002831,60443.0,60442.0,4.1946022]
[1723264600790,0.002831,60443.0,60442.0,4.1726022]
[1723264601195,0.002831,60443.0,60442.0,4.1746022]
[1723264601609,0.002831,60443.0,60442.0,4.1726022]
[1723264602257,0.002831,60443.0,60442.0,4.1111022]
[1723264602682,0.002831,60443.0,60442.0,3.7802072]
[1723264602896,0.002831,60443.0,60442.0,3.7006072]
[1723264603995,0.002831,60443.0,60442.0,3.58615356]
[1723264604215,0.002831,60443.0,60442.0,3.69976553]
[1723264605205,0.002831,60443.0,60442.0,3.77966553]
[1723264606534,0.002831,60443.0,60442.0,3.69976553]
[1723264607751,0.002831,60443.0,60442.0,3.69975061]
[1723264608405,0.002831,60443.0,60442.0,2.99975061]
[1723264611378,0.002831,60443.0,60442.0,3.70030479]
[1723264613540,0.002831,60443.0,60442.0,3.36940979]
[1723264613765,0.146431,60443.0,60442.0,1.69206615]
[1723264613992,0.146431,60443.0,60442.0,1.85751315]
[1723264615136,0.146431,60443.0,60442.0,1.15698463]
[1723264615346,0.145431,60443.0,60442.0,1.24298463]
[1723264615576,0.310876,60443.0,60442.0,0.29135425]
[1723264615799,0.310876,60443.0,60442.0,0.17781492]
[1723264616233,0.311876,60443.0,60442.0,0.18981492]
[1723264616490,0.310876,60443.0,60442.0,0.17581492]
[1723264616710,0.309876,60443.0,60442.0,0.16381492]
[1723264616924,0.145431,60443.0,60442.0,0.17481492]
[1723264617144,0.144431,60443.0,60442.0,0.16781492]
[1723264617358,0.144431,60443.0,60442.0,0.17281492]
[1723264617572,0.144431,60443.0,60442.0,0.33826192]
[1723264617986,0.144431,60443.0,60442.0,0.66915692]
[1723264618207,0.144431,60443.0,60442.0,0.78300424]
[1723264618421,0.144431,60443.0,60442.0,0.66915692]
[1723264618872,0.144431,60443.0,60442.0,1.00005192]
[1723264619039,0.144431,60443.0,60442.0,1.11423124]
[1723264620501,0.144431,60443.0,60442.0,1.12413929]
[1723264622060,0.000831,60443.0,60442.0,1.12413929]
[1723264622379,0.000831,60443.0,60442.0,1.45503429]
[1723264623201,0.000831,60443.0,60442.0,1.45103429]
[1723264623912,0.000831,60443.0,60442.0,1.44603429]
[1723264624141,0.001831,60443.0,60442.0,1.64113429]
[1723264624765,0.001831,60443.0,60442.0,2.35213429]
[1723264624766,0.002831,60443.0,60442.0,2.35213429]
[1723264625185,0.002831,60443.0,60442.0,2.42080675]
[1723264625416,0.002831,60443.0,60442.0,2.306627]
[1723264625609,0.002831,60443.0,60442.0,2.42056411]
[1723264626015,0.002831,60443.0,60442.0,2.42056392]
[1723264626982,0.002831,60443.0,60442.0,3.26056392]
[1723264627368,0.002831,60443.0,60442.0,3.14662692]
[1723264627998,0.002831,60443.0,60442.0,3.06352692]
[1723264628200,0.182831,60443.0,60442.0,3.06352692]
[1723264628401,0.182831,60443.0,60442.0,3.10881532]
[1723264628632,0.182831,60443.0,60442.0,2.26881532]
[1723264628978,0.069131,60443.0,60442.0,2.15485497]
[1723264629182,0.002831,60443.0,60442.0,2.15485497]
[1723264629591,0.002831,60443.0,60442.0,2.26883878]
[1723264630412,0.002831,60443.0,60442.0,1.56883878]
[1723264631028,0.002831,60443.0,60442.0,1.55893073]
[1723264631451,0.002831,60443.0,60442.0,0.30079873]
[1723264631452,0.263031,60443.0,60442.0,0.30079873]
[1723264631627,0.263031,60443.0,60442.0,0.18681492]
[1723264631838,0.263031,60443.0,60442.0,0.35226192]
[1723264632624,0.428476,60443.0,60442.0,0.023]
[1723264633068,1.090256,60443.0,60442.0,0.023]
[1723264633260,1.421146,60443.0,60442.0,0.023]
[1723264633434,1.444146,60443.0,60442.0,0.023]
[1723264633835,1.443146,60443.0,60442.0,0.011]
[1723264634268,1.47282592,60443.0,60442.0,0.015]
[1723264634434,1.47282592,60443.0,60442.0,0.011]
[1723264634637,0.496417,60433.0,60432.0,0.0009141]
[1723264634863,0.756617,60433.0,60432.0,0.0009141]
[1723264635085,1.087562,60433.0,60432.0,0.0009141]
[1723264635718,1.258162,60433.0,60432.0,0.0009141]
[1723264635924,1.259162,60433.0,60432.0,0.0069141]
[1723264636335,1.258162,60433.0,60432.0,0.0009141]
[1723264636562,1.258162,60433.0,60432.0,0.0019141]
[1723264638091,1.589107,60433.0,60432.0,0.0019141]
[1723264638293,1.612107,60433.0,60432.0,0.0029141]
[1723264638497,1.64206888,60433.0,60432.0,0.0029141]
[1723264638719,1.67206888,60433.0,60432.0,0.0029141]
[1723264638946,1.642107,60433.0,60432.0,0.0029141]
[1723264639187,1.67206903,60433.0,60432.0,0.0029141]
[1723264639424,1.67206903,60433.0,60432.0,0.0019141]
[1723264639651,1.67290003,60433.0,60432.0,0.0019141]
[1723264639872,1.67690003,60433.0,60432.0,0.0019141]
[1723264640085,1.67690003,60433.0,60432.0,0.0009141]
[1723264640345,1.68090003,60433.0,60432.0,0.0009141]
[1723264640551,1.67690003,60433.0,60432.0,0.0009141]
[1723264640756,1.68691952,60433.0,60432.0,0.0009141]
[1723264640962,1.68090003,60433.0,60432.0,0.0019141]
[1723264641173,1.65290003,60433.0,60432.0,0.0009141]
[1723264641389,1.66090003,60433.0,60432.0,0.0019141]
[1723264641600,1.66890003,60433.0,60432.0,0.0029141]
[1723264642023,1.66090003,60433.0,60432.0,0.0019141]
[1723264642220,1.6785986,60433.0,60432.0,0.0029141]
[1723264642773,1.67852846,60433.0,60432.0,0.0029141]
[1723264643023,1.67052846,60433.0,60432.0,0.0019141]
[1723264643461,1.69852313,60433.0,60432.0,0.0029141]
[1723264644000,1.69850386,60433.0,60432.0,0.0029141]
[1723264644574,1.69849715,60433.0,60432.0,0.0029141]
[1723264645153,1.35149858,60433.0,60432.0,0.0029141]
[1723264645297,0.990693,60433.0,60432.0,0.0029141]
[1723264646162,0.974693,60433.0,60432.0,0.0009141]
[1723264646621,0.990693,60433.0,60432.0,0.0029141]
[1723264646794,0.982693,60433.0,60432.0,0.0019141]
[1723264647193,0.988693,60433.0,60432.0,0.0019141]
[1723264647394,0.982693,60433.0,60432.0,0.0019141]
[1723264647832,0.990693,60433.0,60432.0,0.0029141]
[1723264648097,0.982693,60433.0,60432.0,0.0019141]
[1723264649139,0.974693,60433.0,60432.0,0.0009141]
[1723264649382,0.980693,60433.0,60432.0,0.0009141]
[1723264650178,0.980693,60433.0,60432.0,0.0019141]
[1723264650394,0.986693,60433.0,60432.0,0.0019141]
[1723264650802,0.980693,60433.0,60432.0,0.0009141]
[1723264651192,0.986693,60433.0,60432.0,0.0009141]
[1723264657130,1.01637004,60433.0,60432.0,0.0009141]
[1723264657826,0.986693,60433.0,60432.0,0.0009141]
[1723264658031,1.01641408,60433.0,60432.0,0.0009141]
[1723264660305,0.20801561,60433.0,60432.0,0.0009141]
[1723264660513,0.53896061,60433.0,60432.0,0.0009141]
[1723264661179,0.53296061,60433.0,60432.0,0.0009141]
[1723264661408,0.52696061,60433.0,60432.0,0.0009141]
[1723264661609,0.53296061,60433.0,60432.0,0.0009141]
[1723264661901,0.52696061,60433.0,60432.0,0.0009141]
[1723264662712,0.53296061,60433.0,60432.0,0.0009141]
[1723264663184,0.85790561,60433.0,60432.0,0.0009141]
[1723264663528,0.86790561,60433.0,60432.0,0.0009141]
[1723264663701,0.94480561,60433.0,60432.0,0.0009141]
[1723264664469,0.93980561,60433.0,60432.0,0.0009141]
[1723264664665,1.58641199,60433.0,60432.0,0.0009141]
[1723264664881,0.065,60417.0,60412.0,0.7818]
[1723264665082,0.3493,60417.0,60413.0,0.27776403]
[1723264665313,0.165521,60415.0,60414.0,0.11394911]
[1723264665728,0.3493,60417.0,60414.0,0.11394911]
[1723264665729,0.165519,60416.0,60414.0,0.11394911]
[1723264665933,0.165519,60416.0,60415.0,0.11394911]
[1723264666138,0.165522,60415.0,60413.0,0.16381492]
[1723264666294,0.165522,60415.0,60414.0,0.11440718]
[1723264666496,0.165519,60416.0,60414.0,0.11440718]
[1723264666696,0.165519,60416.0,60413.0,0.16381492]
[1723264666912,0.165519,60416.0,60414.0,0.11399797]
[1723264667118,0.165521,60415.0,60413.0,0.16381492]
[1723264667561,0.165521,60415.0,60414.0,0.11399757]
[1723264667765,0.165521,60415.0,60414.0,0.11403821]
[1723264668780,0.3493,60417.0,60414.0,0.11403821]
[1723264668985,0.2843,60423.0,60415.0,0.27776421]
[1723264669160,0.165502,60422.0,60419.0,0.16551]
[1723264669360,0.165502,60422.0,60420.0,0.24561492]
[1723264669995,0.2843,60423.0,60420.0,0.24561492]
[1723264669996,0.165505,60421.0,60420.0,0.24561492]
[1723264670598,0.004,60422.0,60420.0,0.36001403]
[1723264670809,0.169504,60422.0,60421.0,0.11439911]
[1723264671014,0.165504,60422.0,60421.0,0.11439911]
[1723264671552,0.169504,60422.0,60421.0,0.11439911]
[1723264671796,0.165504,60422.0,60420.0,0.24561492]
[1723264671999,0.165505,60421.0,60420.0,0.16381492]
[1723264673927,0.167505,60421.0,60420.0,0.16381492]
[1723264674550,0.169505,60421.0,60420.0,0.16381492]
[1723264681469,0.004,60421.0,60420.0,0.16381492]
[1723264681812,0.169505,60421.0,60420.0,0.16381492]
[1723264682640,0.004,60421.0,60420.0,0.16381492]
[1723264682847,0.004,60421.0,60420.0,0.27831728]
[1723264684113,0.004,60421.0,60420.0,0.35381728]
[1723264685188,0.002,60421.0,60420.0,0.35381728]
[1723264685405,0.002,60421.0,60420.0,0.91094128]
[1723264685609,0.002,60421.0,60420.0,0.91394128]
[1723264685771,0.002,60421.0,60420.0,1.24495728]
[1723264686040,0.165481,60430.0,60427.0,0.0755]
[1723264686237,0.165481,60430.0,60427.0,0.23931492]
[1723264686438,0.165481,60430.0,60427.0,0.16381492]
[1723264686439,0.330961,60430.0,60427.0,0.16381492]
[1723264686769,0.306786,60428.0,60427.0,0.16381492]
[1723264686933,0.66714577,60428.0,60427.0,0.16381492]
[1723264687138,0.637758,60428.0,60427.0,0.16381492]
[1723264687545,0.306786,60428.0,60427.0,0.16481492]
[1723264687939,0.306786,60428.0,60427.0,0.16381492]
[1723264688168,0.311786,60428.0,60427.0,0.16381492]
[1723264688388,0.34125866,60428.0,60427.0,0.16381492]
[1723264689231,0.165496,60425.0,60420.0,0.3319291]
[1723264689444,0.17977266,60428.0,60422.0,0.165501]
[1723264689445,0.165492,60426.0,60422.0,0.165501]
[1723264689683,0.02942001,60425.0,60423.0,0.32931392]
[1723264689907,0.165489,60427.0,60423.0,0.32931392]
[1723264690138,0.165489,60427.0,60424.0,0.11523922]
[1723264690370,0.165489,60427.0,60425.0,0.16381492]
[1723264691322,0.2843,60429.0,60425.0,0.23931492]
[1723264691580,0.2843,60429.0,60426.0,0.34134994]
[1723264691831,0.449784,60429.0,60427.0,0.16381492]
[1723264692331,0.165486,60428.0,60427.0,0.16381492]
[1723264693122,0.637758,60428.0,60427.0,0.16381492]
[1723264693325,0.637758,60428.0,60427.0,0.16581492]
[1723264693527,0.306786,60428.0,60427.0,0.16581492]
[1723264693934,0.306786,60428.0,60427.0,0.16381492]
[1723264694149,0.1413,60428.0,60427.0,0.16381492]
[1723264694347,0.2843,60429.0,60427.0,0.16581492]
[1723264694348,0.449785,60429.0,60427.0,0.16581492]
[1723264694545,0.449785,60429.0,60427.0,0.16381492]
[1723264694993,0.449785,60429.0,60427.0,0.16581492]
[1723264695215,0.449785,60429.0,60427.0,0.16381492]
[1723264695368,0.449785,60429.0,60427.0,0.16581492]
[1723264695579,0.165486,60428.0,60427.0,0.16681492]
[1723264695802,0.165486,60428.0,60427.0,0.16481492]
[1723264696168,0.2843,60429.0,60427.0,0.16581492]
[1723264696366,0.449784,60429.0,60427.0,0.16581492]
[1723264696576,0.449784,60429.0,60427.0,0.16481492]
[1723264696980,0.449784,60429.0,60427.0,0.16681492]
[1723264697181,0.165486,60428.0,60427.0,0.16681492]
[1723264697566,0.165486,60428.0,60427.0,0.16581492]
[1723264697766,0.165486,60428.0,60427.0,0.16781492]
[1723264698363,0.165486,60428.0,60427.0,0.16581492]
[1723264698605,0.165486,60428.0,60427.0,0.16481492]
[1723264699276,0.165486,60428.0,60427.0,0.16381492]
[1723264700509,0.165486,60428.0,60427.0,0.16472902]
[1723264701823,0.279186,60428.0,60427.0,0.16472902]
[1723264706333,0.30866887,60428.0,60427.0,0.16472902]
[1723264707447,0.30867526,60428.0,60427.0,0.16472902]
[1723264708115,0.30868722,60428.0,60427.0,0.16472902]
[1723264708344,0.30868722,60428.0,60427.0,0.2796909]
[1723264708819,0.38878722,60428.0,60427.0,0.16472902]
[1723264709280,0.38878722,60428.0,60427.0,0.27925662]
[1723264709281,0.30868722,60428.0,60427.0,0.27925662]
[1723264709514,0.02950122,60428.0,60427.0,0.27925662]
[1723264709740,0.1137,60428.0,60427.0,0.27925662]
[1723264709968,0.14320122,60428.0,60427.0,0.27925662]
[1723264710663,0.14320122,60428.0,60427.0,0.2794752]
[1723264710889,0.14320122,60428.0,60427.0,0.2834752]
[1723264711156,0.14326968,60428.0,60427.0,0.28339029]
[1723264712086,0.14326968,60428.0,60427.0,0.28739029]
[1723264713734,0.14326968,60428.0,60427.0,0.28339029]
[1723264713955,0.14326968,60428.0,60427.0,0.28439029]
[1723264714374,0.02592308,60430.0,60427.0,0.33521602]
[1723264714585,0.1137,60428.0,60427.0,0.44584028]
[1723264714784,0.14327138,60428.0,60427.0,0.39597753]
[1723264715212,0.14327138,60428.0,60427.0,0.28035327]
[1723264715418,0.14327138,60428.0,60427.0,0.27935327]
[1723264716589,0.14327138,60428.0,60427.0,0.28135327]
[1723264717198,0.14327138,60428.0,60427.0,0.28335327]
[1723264717605,0.14327138,60428.0,60427.0,0.28135327]
[1723264718013,0.14327138,60428.0,60427.0,0.28093382]
[1723264718014,0.14330608,60428.0,60427.0,0.28093382]
[1723264718223,0.14330608,60428.0,60427.0,0.28393382]
[1723264718621,0.14333049,60428.0,60427.0,0.28093371]
[1723264719049,0.14333049,60428.0,60427.0,0.28293371]
[1723264720194,0.14333049,60428.0,60427.0,0.28093371]
[1723264720395,0.14333049,60428.0,60427.0,0.28393371]
[1723264721614,0.44919653,60428.0,60427.0,0.28491606]
[1723264723356,1.11114053,60428.0,60427.0,0.12110114]
[1723264724632,1.11114053,60428.0,60427.0,0.12059879]
[1723264724832,1.11114053,60428.0,60427.0,0.0069141]
[1723264725242,1.1112373,60428.0,60427.0,0.0069141]
[1723264728515,1.1112373,60428.0,60427.0,0.0039141]
[1723264728685,1.1112373,60428.0,60427.0,0.0009141]
[1723264728888,1.11137703,60428.0,60427.0,0.0029141]
[1723264729249,1.08143,60428.0,60427.0,0.0029141]
[1723264729451,1.11137054,60428.0,60427.0,0.0029141]
[1723264730072,1.11137054,60428.0,60427.0,0.0049141]
[1723264730337,1.11137054,60428.0,60427.0,0.0029141]
[1723264730540,1.11137054,60428.0,60427.0,0.0009141]
[1723264730749,1.11337054,60428.0,60427.0,0.0019141]
[1723264731180,1.11137054,60428.0,60427.0,0.0019141]
[1723264731593,1.11137054,60428.0,60427.0,0.0029141]
[1723264732904,1.1113495,60428.0,60427.0,0.0029141]
[1723264735290,0.0299195,60428.0,60427.0,0.0029141]
[1723264735501,0.1436195,60428.0,60427.0,0.16672902]
[1723264735955,0.1436195,60428.0,60427.0,0.28000923]
[1723264736156,0.3091055,60428.0,60427.0,0.28000923]
[1723264736681,0.7846775,60428.0,60427.0,0.0029141]
[1723264736847,1.11563437,60428.0,60427.0,0.0029141]
[1723264737021,0.78466237,60428.0,60427.0,0.0029141]
[1723264737490,0.78466237,60428.0,60427.0,0.0019141]
[1723264737491,0.754758,60428.0,60427.0,0.0019141]
[1723264737624,0.78489898,60428.0,60427.0,0.0009141]
[1723264738130,0.78689898,60428.0,60427.0,0.0009141]
[1723264738335,0.78489898,60428.0,60427.0,0.0009141]
[1723264738536,0.78689898,60428.0,60427.0,0.0009141]
[1723264738935,0.31132698,60428.0,60427.0,0.0009141]
[1723264739193,0.31132698,60428.0,60427.0,0.0803141]
[1723264739614,0.31332698,60428.0,60427.0,0.0803141]
[1723264740019,0.31132698,60428.0,60427.0,0.0803141]
[1723264740220,0.30932698,60428.0,60427.0,0.0803141]
[1723264740400,0.31132698,60428.0,60427.0,0.0803141]
[1723264740606,0.281186,60428.0,60427.0,0.0803141]
[1723264740803,0.31116766,60428.0,60427.0,0.0803141]
[1723264741639,0.31116766,60428.0,60427.0,0.19331831]
[1723264741816,0.03198166,60428.0,60427.0,0.35713323]
[1723264742015,0.03198166,60428.0,60427.0,0.52262123]
[1723264742016,0.1157,60428.0,60427.0,0.52262123]
[1723264742196,0.1157,60428.0,60427.0,0.35713323]
[1723264743012,0.1147,60428.0,60427.0,0.35713323]
[1723264743445,0.1147,60428.0,60427.0,0.24412902]
[1723264743677,0.1137,60428.0,60427.0,0.35715578]
[1723264744672,0.1137,60428.0,60427.0,0.36015578]
[1723264744889,0.1137,60428.0,60427.0,0.36315578]
[1723264745519,0.1137,60428.0,60427.0,0.52864378]
[1723264746169,0.1137,60428.0,60427.0,0.36315578]
[1723264747590,0.1137,60428.0,60427.0,0.36313348]
[1723264748030,0.1137,60428.0,60427.0,0.52862148]
[1723264748237,0.1137,60428.0,60427.0,0.36313348]
[1723264751746,0.1137,60428.0,60427.0,0.28387852]
[1723264751747,0.279186,60428.0,60427.0,0.28387852]
[1723264751997,0.1137,60428.0,60427.0,0.28387852]
[1723264752205,0.1137,60428.0,60427.0,0.17072902]
[1723264752414,0.1137,60428.0,60427.0,0.28387852]
[1723264754831,0.1137,60428.0,60427.0,0.17072902]
[1723264756367,0.1137,60428.0,60427.0,0.28385292]
[1723264757138,0.1137,60428.0,60427.0,0.28386689]
[1723264757360,1.08003,60428.0,60427.0,0.12005197]
[1723264757577,1.10993132,60428.0,60427.0,0.0069141]
[1723264758687,0.77895932,60428.0,60427.0,0.0069141]
[1723264758892,0.77895932,60428.0,60427.0,0.0039141]
[1723264759080,0.78295932,60428.0,60427.0,0.0039141]
[1723264759786,0.77895932,60428.0,60427.0,0.0009141]
[1723264760067,1.11393132,60428.0,60427.0,0.0009141]
[1723264760275,1.11893132,60428.0,60427.0,0.0009141]
[1723264760481,1.11916113,60428.0,60427.0,0.0009141]
[1723264761813,0.78818913,60428.0,60427.0,0.0009141]
[1723264762795,0.78418913,60428.0,60427.0,0.0009141]
[1723264763013,0.78318913,60428.0,60427.0,0.0009141]
[1723264763240,0.78818913,60428.0,60427.0,0.0009141]
[1723264763464,0.64928913,60428.0,60427.0,0.0009141]
[1723264763669,0.31831713,60428.0,60427.0,0.0009141]
[1723264763951,0.31421389,60428.0,60427.0,0.11385895]
[1723264764140,0.30921389,60428.0,60427.0,0.11385895]
[1723264764365,0.30921389,60428.0,60427.0,0.11385972]
[1723264764366,0.64418638,60428.0,60427.0,0.11385972]
[1723264764603,0.64018638,60428.0,60427.0,0.11385972]
[1723264765263,0.64318638,60428.0,60427.0,0.11385972]
[1723264765499,0.64319845,60428.0,60427.0,0.11381948]
[1723264765968,0.64019845,60428.0,60427.0,0.11381948]
[1723264766177,0.64119845,60428.0,60427.0,0.11381948]
[1723264766605,0.64219845,60428.0,60427.0,0.11381948]
[1723264766826,0.64019845,60428.0,60427.0,0.11381948]
[1723264767076,0.64119845,60428.0,60427.0,0.11381948]
[1723264768651,0.64019845,60428.0,60427.0,0.11381948]
[1723264769411,0.30922645,60428.0,60427.0,0.11381948]
[1723264771042,0.30922645,60428.0,60427.0,0.11376285]
[1723264771043,0.30924525,60428.0,60427.0,0.11376285]
[1723264773883,0.31124525,60428.0,60427.0,0.11376285]
[1723264774545,0.31123238,60428.0,60427.0,0.11382356]
[1723264774771,0.31323238,60428.0,60427.0,0.11382356]
[1723264775049,0.31324105,60428.0,60427.0,0.11380423]
[1723264775279,0.31124105,60428.0,60427.0,0.11380423]
[1723264776507,0.31324105,60428.0,60427.0,0.11380423]
[1723264777465,0.64421305,60428.0,60427.0,0.11380423]
[1723264777661,0.31324105,60428.0,60427.0,0.11380423]
[1723264778153,0.31319201,60428.0,60427.0,0.0009141]
[1723264778396,0.72416401,60428.0,60427.0,0.11401084]
[1723264778632,0.78956401,60428.0,60427.0,0.11401084]
[1723264779393,0.78756401,60428.0,60427.0,0.11401084]
[1723264780357,0.78556401,60428.0,60427.0,0.11401084]
[1723264780610,0.78956401,60428.0,60427.0,0.11401084]
[1723264781851,0.757558,60428.0,60427.0,0.11383518]
[1723264782071,0.78960772,60428.0,60427.0,0.11383518]
[1723264785085,0.78960772,60428.0,60427.0,0.0009141]
[1723264785086,1.48455172,60428.0,60427.0,0.0009141]
[1723264785345,1.64697691,60428.0,60427.0,0.0009141]
[1723264785573,1.4940067,60428.0,60427.0,0.0009141]
[1723264785812,1.47461294,60428.0,60427.0,0.0009141]
[1723264786055,1.47261294,60428.0,60427.0,0.0009141]
[1723264786313,1.52211764,60428.0,60427.0,0.0009141]
[1723264786504,1.47261294,60428.0,60427.0,0.0009141]
[1723264786726,1.48461294,60428.0,60427.0,0.0019141]
[1723264787471,1.48261294,60428.0,60427.0,0.0019141]
[1723264787756,1.49258479,60428.0,60427.0,0.0019141]
[1723264787947,1.50258479,60428.0,60427.0,0.0029141]
[1723264788359,1.53007783,60428.0,60427.0,0.0009141]
[1723264788594,1.53907783,60428.0,60427.0,0.0019141]
[1723264788819,0.827525,60421.0,60420.0,0.0009141]
[1723264789044,1.11030779,60421.0,60420.0,0.0009141]
[1723264789286,1.1104558,60421.0,60420.0,0.0009141]
[1723264789706,1.4414658,60421.0,60420.0,0.0009141]
[1723264790154,1.4424658,60421.0,60420.0,0.0009141]
[1723264791412,1.4414658,60421.0,60420.0,0.0009141]
[1723264791612,1.4424658,60421.0,60420.0,0.0009141]
[1723264791767,1.4454658,60421.0,60420.0,0.0009141]
[1723264791969,1.4444658,60421.0,60420.0,0.0009141]
[1723264792132,1.4454658,60421.0,60420.0,0.0009141]
[1723264792340,1.4684658,60421.0,60420.0,0.0009141]
[1723264792547,1.4724658,60421.0,60420.0,0.0009141]
[1723264792766,1.4684658,60421.0,60420.0,0.0009141]
[1723264792973,1.4694658,60421.0,60420.0,0.0009141]
[1723264793397,1.4744658,60421.0,60420.0,0.0019141]
[1723264794197,1.8154758,60421.0,60420.0,0.0019141]
[1723264794462,1.8154758,60421.0,60414.0,0.0009141]
[1723264794463,0.966607,60415.0,60414.0,0.0009141]
[1723264794676,1.4645808,60415.0,60414.0,0.0009141]
[1723264795726,1.4645808,60415.0,60414.0,0.0019141]
[1723264795931,1.4655808,60415.0,60414.0,0.0019141]
[1723264796141,1.4655808,60415.0,60414.0,0.0009141]
[1723264796548,1.4665808,60415.0,60414.0,0.0009141]
[1723264796770,1.43635,60415.0,60414.0,0.0009141]
[1723264796979,1.4667061,60415.0,60414.0,0.0009141]
[1723264797590,1.4657061,60415.0,60414.0,0.0009141]
[1723264797777,1.4697061,60415.0,60414.0,0.0009141]
[1723264798024,1.4687061,60415.0,60414.0,0.0009141]
[1723264798865,1.4647061,60415.0,60414.0,0.0009141]
[1723264799073,1.4697061,60415.0,60414.0,0.0009141]
[1723264799278,1.4647061,60415.0,60414.0,0.0009141]
[1723264799693,1.47067365,60415.0,60414.0,0.0019141]
[1723264800701,1.47667365,60415.0,60414.0,0.0029141]
[1723264801102,1.46467365,60415.0,60414.0,0.0009141]
[1723264801314,1.47267365,60415.0,60414.0,0.0009141]
[1723264801519,1.48167365,60415.0,60414.0,0.0019141]
[1723264801933,0.98063065,60415.0,60414.0,0.0019141]
[1723264802146,0.505564,60415.0,60414.0,0.0682141]
[1723264802344,0.627264,60415.0,60414.0,0.0682141]
[1723264802942,0.619264,60415.0,60414.0,0.0682141]
[1723264803962,0.610264,60415.0,60414.0,0.0672141]
[1723264804365,0.625264,60415.0,60414.0,0.0692141]
[1723264804746,0.1137,60415.0,60414.0,0.31012902]
[1723264804947,0.1157,60415.0,60414.0,0.31012902]
[1723264805143,0.283221,60415.0,60414.0,0.31012902]
[1723264805561,0.281221,60415.0,60414.0,0.31012902]
[1723264805810,0.279221,60415.0,60414.0,0.31012902]
[1723264805988,0.941307,60415.0,60414.0,0.0800141]
[1723264806197,0.941307,60415.0,60414.0,0.0009141]